[Event "*** Titled Tuesday Blitz"]
[Site "Chess.com"]
[Date "2018.11.06"]
[Round "5"]
[White "gmcorrales"]
[Black "nubair1198"]
[Result "0-1"]
[WhiteElo "2720"]
[BlackElo "2561"]
[TimeControl "180+2"]
[EndTime "14:06:00 PST"]
[Termination "nubair1198 won by checkmate"]

1. e4 {[%clk 0:02:41.9]} 1... c6 {[%clk 0:03:00.7]} 2. d4 {[%clk 0:02:42.3]}
2... d5 {[%clk 0:03:02.6]} 3. e5 {[%clk 0:02:39.6]} 3... c5 {[%clk 0:03:04]} 4.
dxc5 {[%clk 0:02:37.9]} 4... e6 {[%clk 0:03:05.3]} 5. a3 {[%clk 0:02:39]} 5...
Nc6 {[%clk 0:03:06.8]} 6. Nf3 {[%clk 0:02:37.3]} 6... Bxc5 {[%clk 0:03:08.3]} 7.
b4 {[%clk 0:02:37.3]} 7... Bb6 {[%clk 0:03:09.8]} 8. Bd3 {[%clk 0:02:38]} 8...
f6 {[%clk 0:03:10.6]} 9. Bb2 {[%clk 0:02:29.7]} 9... fxe5 {[%clk 0:03:11.4]} 10.
Nxe5 {[%clk 0:02:30.7]} 10... Qg5 {[%clk 0:03:12.9]} 11. Qg4 {[%clk 0:02:08.2]}
11... Qxg4 {[%clk 0:03:13.4]} 12. Nxg4 {[%clk 0:02:10.1]} 12... Nf6 {[%clk
0:03:15.1]} 13. Nxf6+ {[%clk 0:02:03.7]} 13... gxf6 {[%clk 0:03:17]} 14. Bxf6
{[%clk 0:02:05.2]} 14... Bxf2+ {[%clk 0:03:12.5]} 15. Kxf2 {[%clk 0:01:56.4]}
15... O-O {[%clk 0:03:12.1]} 16. Nd2 {[%clk 0:01:54.5]} 16... Rxf6+ {[%clk
0:03:09.4]} 17. Kg3 {[%clk 0:01:55.8]} 17... e5 {[%clk 0:01:53.4]} 18. Rhf1
{[%clk 0:01:53.9]} 18... Rd6 {[%clk 0:01:54.9]} 19. Rad1 {[%clk 0:01:42.7]}
19... e4 {[%clk 0:01:43.4]} 20. Be2 {[%clk 0:01:38.7]} 20... Nd4 {[%clk
0:01:35.3]} 21. Bh5 {[%clk 0:01:37.8]} 21... Rd7 {[%clk 0:01:36.3]} 22. Kh4
{[%clk 0:01:16.7]} 22... Nxc2 {[%clk 0:01:26.8]} 23. Rf6 {[%clk 0:01:14.9]}
23... Ne3 {[%clk 0:01:22.3]} 24. Rg1 {[%clk 0:01:15.1]} 24... Kg7 {[%clk
0:01:23.7]} 25. Rf4 {[%clk 0:01:12.8]} 25... Rc7 {[%clk 0:01:18.3]} 26. Nb3
{[%clk 0:00:53.5]} 26... Nf5+ {[%clk 0:01:12.3]} 27. Rxf5 {[%clk 0:00:48.7]}
27... Bxf5 {[%clk 0:01:14.2]} 28. Nd4 {[%clk 0:00:50.6]} 28... Bd7 {[%clk
0:01:14.3]} 29. g4 {[%clk 0:00:47.4]} 29... Rc4 {[%clk 0:01:12]} 30. Rd1 {[%clk
0:00:48]} 30... Rf8 {[%clk 0:01:11.5]} 31. Ne2 {[%clk 0:00:46.1]} 31... Rf2
{[%clk 0:01:12.6]} 32. Rxd5 {[%clk 0:00:42.6]} 32... Be6 {[%clk 0:01:12.1]} 33.
Rd6 {[%clk 0:00:37.4]} 33... Kf6 {[%clk 0:01:05.7]} 34. g5+ {[%clk 0:00:34.8]}
34... Ke5 {[%clk 0:01:04.8]} 35. Rd8 {[%clk 0:00:32.2]} 35... Rc2 {[%clk
0:01:02.4]} 36. Nd4 {[%clk 0:00:16.8]} 36... Rxh2+ {[%clk 0:01:03.6]} 37. Kg3
{[%clk 0:00:18]} 37... Rcg2# {[%clk 0:01:05]} 0-1

[Event "*** Titled Tuesday Blitz"]
[Site "Chess.com"]
[Date "2018.11.06"]
[Round "5"]
[White "jcibarra"]
[Black "Keaton87"]
[Result "1-0"]
[WhiteElo "2624"]
[BlackElo "2465"]
[TimeControl "180+2"]
[EndTime "14:06:13 PST"]
[Termination "jcibarra won by resignation"]

1. Nf3 {[%clk 0:02:51.8]} 1... Nf6 {[%clk 0:03:00.1]} 2. g3 {[%clk 0:02:50.8]}
2... d5 {[%clk 0:03:00.5]} 3. Bg2 {[%clk 0:02:51.1]} 3... Bf5 {[%clk 0:03:01.4]}
4. O-O {[%clk 0:02:50.3]} 4... e6 {[%clk 0:03:02.4]} 5. c4 {[%clk 0:02:49.3]}
5... c6 {[%clk 0:03:02.7]} 6. cxd5 {[%clk 0:02:37.3]} 6... exd5 {[%clk 0:03:03]}
7. d3 {[%clk 0:02:32.1]} 7... Be7 {[%clk 0:03:02.7]} 8. Qb3 {[%clk 0:02:31.9]}
8... Qb6 {[%clk 0:03:01.1]} 9. Qc2 {[%clk 0:02:31.9]} 9... Nbd7 {[%clk 0:03:00]}
10. Nc3 {[%clk 0:02:31.1]} 10... O-O {[%clk 0:03:00.3]} 11. e4 {[%clk 0:02:31]}
11... Bg6 {[%clk 0:02:58.9]} 12. Be3 {[%clk 0:02:31.6]} 12... Qd8 {[%clk
0:02:56.5]} 13. exd5 {[%clk 0:02:23.2]} 13... Nxd5 {[%clk 0:02:50.1]} 14. Nxd5
{[%clk 0:02:22.6]} 14... cxd5 {[%clk 0:02:51.7]} 15. Qb3 {[%clk 0:02:23.6]}
15... Nc5 {[%clk 0:02:48.8]} 16. Bxc5 {[%clk 0:02:17.7]} 16... Bxc5 {[%clk
0:02:50.7]} 17. Ne5 {[%clk 0:02:12]} 17... Qb6 {[%clk 0:02:39.2]} 18. Nd7 {[%clk
0:01:47.3]} 18... Qxb3 {[%clk 0:02:33.1]} 19. axb3 {[%clk 0:01:47.8]} 19... Rfc8
{[%clk 0:02:32.3]} 20. Bxd5 {[%clk 0:01:48.6]} 20... Bd4 {[%clk 0:02:30.5]} 21.
Bxb7 {[%clk 0:01:47]} 21... Bf5 {[%clk 0:02:26.5]} 22. Bxa8 {[%clk 0:01:21.4]}
22... Rxa8 {[%clk 0:02:27.3]} 23. Ra4 {[%clk 0:01:16.9]} 23... Bxb2 {[%clk
0:02:15.1]} 24. Nb6 {[%clk 0:01:09.4]} 24... Rb8 {[%clk 0:01:56]} 25. Rxa7
{[%clk 0:01:10.3]} 25... Bxd3 {[%clk 0:01:47.9]} 26. Rd1 {[%clk 0:01:08.1]}
26... Be4 {[%clk 0:01:41.9]} 27. Rc7 {[%clk 0:00:43.9]} 27... Bf5 {[%clk
0:01:23.9]} 28. Rc8+ {[%clk 0:00:43.1]} 28... Rxc8 {[%clk 0:01:17.3]} 29. Nxc8
{[%clk 0:00:45]} 29... Bf6 {[%clk 0:01:10.9]} 30. Nb6 {[%clk 0:00:32]} 30... h5
{[%clk 0:01:09.5]} 31. Nd5 {[%clk 0:00:31.7]} 31... Bg5 {[%clk 0:01:03.5]} 32.
h4 {[%clk 0:00:28.5]} 32... Bg4 {[%clk 0:01:04]} 33. Re1 {[%clk 0:00:17.8]}
33... Bd2 {[%clk 0:01:04.6]} 34. Re8+ {[%clk 0:00:17.6]} 34... Kh7 {[%clk
0:01:05.7]} 35. Ne3 {[%clk 0:00:15.3]} 35... Be6 {[%clk 0:01:06.5]} 36. Rb8
{[%clk 0:00:14.9]} 36... Kg6 {[%clk 0:01:06.2]} 37. b4 {[%clk 0:00:16.3]} 37...
Bc3 {[%clk 0:01:02.1]} 38. b5 {[%clk 0:00:17.4]} 38... Be5 {[%clk 0:01:03.8]}
39. Rd8 {[%clk 0:00:17.5]} 39... Bc7 {[%clk 0:01:03.7]} 40. Rd1 {[%clk
0:00:17.9]} 40... f5 {[%clk 0:00:59.3]} 41. Nd5 {[%clk 0:00:18.3]} 1-0

[Event "*** Titled Tuesday Blitz"]
[Site "Chess.com"]
[Date "2018.11.06"]
[Round "5"]
[White "GadimbayliA"]
[Black "Adham_Fawzy"]
[Result "1-0"]
[WhiteElo "2652"]
[BlackElo "2644"]
[TimeControl "180+2"]
[EndTime "14:06:21 PST"]
[Termination "GadimbayliA won by resignation"]

1. e4 {[%clk 0:03:01.9]} 1... c5 {[%clk 0:03:00.5]} 2. Nf3 {[%clk 0:03:01.4]}
2... Nc6 {[%clk 0:03:01.6]} 3. Bb5 {[%clk 0:03:01.6]} 3... g6 {[%clk 0:03:02.1]}
4. Bxc6 {[%clk 0:03:02.2]} 4... dxc6 {[%clk 0:03:04]} 5. d3 {[%clk 0:03:01.8]}
5... Bg7 {[%clk 0:03:04.8]} 6. h3 {[%clk 0:03:02.3]} 6... Nf6 {[%clk 0:03:05.6]}
7. O-O {[%clk 0:03:03.4]} 7... Nd7 {[%clk 0:03:06.2]} 8. Nc3 {[%clk 0:03:04.4]}
8... e5 {[%clk 0:03:07.1]} 9. Be3 {[%clk 0:03:03.4]} 9... h6 {[%clk 0:03:06.6]}
10. Qd2 {[%clk 0:03:02.2]} 10... b6 {[%clk 0:03:07.7]} 11. a3 {[%clk 0:02:57.9]}
11... a5 {[%clk 0:03:04.4]} 12. b4 {[%clk 0:02:28.7]} 12... axb4 {[%clk
0:03:01.9]} 13. axb4 {[%clk 0:02:30.6]} 13... Rxa1 {[%clk 0:03:02.4]} 14. Rxa1
{[%clk 0:02:31.2]} 14... cxb4 {[%clk 0:03:03.4]} 15. Na4 {[%clk 0:02:26.8]}
15... c5 {[%clk 0:03:04.3]} 16. c3 {[%clk 0:01:57]} 16... bxc3 {[%clk
0:03:04.4]} 17. Qxc3 {[%clk 0:01:55.1]} 17... O-O {[%clk 0:03:01.4]} 18. Rb1
{[%clk 0:01:52.6]} 18... Ba6 {[%clk 0:02:55.2]} 19. Qb3 {[%clk 0:01:35.7]} 19...
Qc7 {[%clk 0:02:53.9]} 20. Nc3 {[%clk 0:01:33.1]} 20... c4 {[%clk 0:02:32.2]}
21. Qa2 {[%clk 0:01:21.4]} 21... cxd3 {[%clk 0:02:25]} 22. Qxa6 {[%clk 0:01:20]}
22... Qxc3 {[%clk 0:02:25]} 23. Rc1 {[%clk 0:01:21.9]} 23... Qb3 {[%clk
0:02:10.9]} 24. Nd2 {[%clk 0:01:13.9]} 24... Qb2 {[%clk 0:02:10]} 25. Rc7 {[%clk
0:01:11.5]} 25... Nc5 {[%clk 0:01:51.8]} 26. Bxc5 {[%clk 0:01:11.3]} 26... Qxd2
{[%clk 0:01:52.1]} 27. Bxf8 {[%clk 0:00:56.1]} 27... Qe1+ {[%clk 0:01:50.1]} 28.
Kh2 {[%clk 0:00:55.1]} 28... d2 {[%clk 0:01:43.1]} 29. Bb4 {[%clk 0:00:44.9]}
29... d1=Q {[%clk 0:01:10.6]} 30. Bxe1 {[%clk 0:00:46.8]} 30... Qxe1 {[%clk
0:01:11.8]} 31. Qa8+ {[%clk 0:00:43.1]} 31... Bf8 {[%clk 0:01:09.2]} 32. Rc8
{[%clk 0:00:39.8]} 32... Qb4 {[%clk 0:01:09.8]} 33. Qd5 {[%clk 0:00:40.3]} 33...
Qe7 {[%clk 0:01:06.3]} 34. Rb8 {[%clk 0:00:39.1]} 34... Qf6 {[%clk 0:01:07]} 35.
Kg1 {[%clk 0:00:34.3]} 35... Qf4 {[%clk 0:01:05.5]} 36. g3 {[%clk 0:00:31.7]}
36... Qf6 {[%clk 0:01:01.6]} 37. Re8 {[%clk 0:00:25.9]} 1-0

[Event "*** Titled Tuesday Blitz"]
[Site "Chess.com"]
[Date "2018.11.06"]
[Round "5"]
[White "Vuk2000"]
[Black "pastouche06"]
[Result "1-0"]
[WhiteElo "2686"]
[BlackElo "2441"]
[TimeControl "180+2"]
[EndTime "14:06:22 PST"]
[Termination "Vuk2000 won by resignation"]

1. d4 {[%clk 0:03:01.9]} 1... Nf6 {[%clk 0:03:00.3]} 2. Bg5 {[%clk 0:03:02.8]}
2... Ne4 {[%clk 0:02:58.1]} 3. Bf4 {[%clk 0:03:03.9]} 3... d5 {[%clk 0:02:59.6]}
4. e3 {[%clk 0:03:04.5]} 4... c5 {[%clk 0:02:59.2]} 5. Bd3 {[%clk 0:03:02.2]}
5... cxd4 {[%clk 0:02:59.8]} 6. exd4 {[%clk 0:03:00.3]} 6... Nc6 {[%clk
0:03:00.2]} 7. c3 {[%clk 0:03:00.4]} 7... Bf5 {[%clk 0:02:49.6]} 8. Qe2 {[%clk
0:03:00]} 8... Bg6 {[%clk 0:02:31.8]} 9. Nf3 {[%clk 0:02:55.6]} 9... e6 {[%clk
0:02:32.4]} 10. Ne5 {[%clk 0:02:42.1]} 10... Bd6 {[%clk 0:02:27.5]} 11. Nxg6
{[%clk 0:01:51.6]} 11... hxg6 {[%clk 0:02:29.4]} 12. Bxd6 {[%clk 0:01:52.7]}
12... Nxd6 {[%clk 0:02:20.4]} 13. Nd2 {[%clk 0:01:50.3]} 13... Nf5 {[%clk
0:02:04.1]} 14. Nf3 {[%clk 0:01:46.9]} 14... Nh4 {[%clk 0:01:59.6]} 15. g3
{[%clk 0:01:43.2]} 15... Nxf3+ {[%clk 0:01:56.4]} 16. Qxf3 {[%clk 0:01:45.1]}
16... Qf6 {[%clk 0:01:47]} 17. Qe3 {[%clk 0:01:37.9]} 17... g5 {[%clk
0:01:37.4]} 18. O-O-O {[%clk 0:01:30.9]} 18... O-O-O {[%clk 0:01:36.6]} 19. Rdf1
{[%clk 0:01:31.3]} 19... Kb8 {[%clk 0:01:30]} 20. f4 {[%clk 0:01:30.9]} 20...
gxf4 {[%clk 0:01:18.6]} 21. Rxf4 {[%clk 0:01:26.8]} 21... Qg5 {[%clk 0:01:11]}
22. Kb1 {[%clk 0:01:22.3]} 22... Rhe8 {[%clk 0:01:04.7]} 23. Bb5 {[%clk
0:01:01.2]} 23... Re7 {[%clk 0:00:56.4]} 24. Bxc6 {[%clk 0:00:46.9]} 24... bxc6
{[%clk 0:00:56.6]} 25. h4 {[%clk 0:00:39.5]} 25... Qg6+ {[%clk 0:00:56.2]} 26.
Ka1 {[%clk 0:00:40.5]} 26... f6 {[%clk 0:00:48]} 27. g4 {[%clk 0:00:35]} 27...
e5 {[%clk 0:00:47.5]} 28. dxe5 {[%clk 0:00:35.9]} 28... fxe5 {[%clk 0:00:49.1]}
29. Rb4+ {[%clk 0:00:37]} 29... Ka8 {[%clk 0:00:50.4]} 30. h5 {[%clk 0:00:36.7]}
30... Qd6 {[%clk 0:00:49.9]} 31. Re1 {[%clk 0:00:32.9]} 31... c5 {[%clk
0:00:34.5]} 32. Ra4 {[%clk 0:00:30.8]} 32... e4 {[%clk 0:00:33.3]} 33. Rd1
{[%clk 0:00:26.1]} 33... Qc6 {[%clk 0:00:31.8]} 34. Ra5 {[%clk 0:00:22.7]} 34...
d4 {[%clk 0:00:30.1]} 35. Qg5 {[%clk 0:00:23.4]} 35... Rc7 {[%clk 0:00:28.6]}
36. Qxd8+ {[%clk 0:00:22.9]} 1-0

[Event "*** Titled Tuesday Blitz"]
[Site "Chess.com"]
[Date "2018.11.06"]
[Round "5"]
[White "maximlavrov"]
[Black "moro182"]
[Result "1-0"]
[WhiteElo "2576"]
[BlackElo "2719"]
[TimeControl "180+2"]
[EndTime "14:06:26 PST"]
[Termination "maximlavrov won by resignation"]

1. Nf3 {[%clk 0:02:58.3]} 1... d5 {[%clk 0:02:58.3]} 2. g3 {[%clk 0:03:00.2]}
2... Nf6 {[%clk 0:02:58.8]} 3. Bg2 {[%clk 0:03:01.6]} 3... e6 {[%clk 0:03:00.3]}
4. O-O {[%clk 0:03:02.4]} 4... c5 {[%clk 0:03:01.9]} 5. c4 {[%clk 0:03:01.8]}
5... d4 {[%clk 0:03:02.9]} 6. e3 {[%clk 0:03:02.4]} 6... Nc6 {[%clk 0:03:04.5]}
7. exd4 {[%clk 0:03:03.1]} 7... cxd4 {[%clk 0:03:06.4]} 8. Re1 {[%clk
0:03:03.5]} 8... Bd6 {[%clk 0:03:05.8]} 9. d3 {[%clk 0:02:59.5]} 9... h6 {[%clk
0:03:07]} 10. Na3 {[%clk 0:03:00.6]} 10... O-O {[%clk 0:03:03.4]} 11. Nc2 {[%clk
0:03:00.6]} 11... e5 {[%clk 0:03:04.3]} 12. b4 {[%clk 0:02:58.7]} 12... Nxb4
{[%clk 0:02:52.9]} 13. Nxb4 {[%clk 0:02:40]} 13... Bxb4 {[%clk 0:02:54.8]} 14.
Rxe5 {[%clk 0:02:40.7]} 14... Bd6 {[%clk 0:02:33.9]} 15. Re1 {[%clk 0:02:40.8]}
15... Bg4 {[%clk 0:02:31.8]} 16. Rb1 {[%clk 0:02:40.8]} 16... Rb8 {[%clk
0:02:30.6]} 17. h3 {[%clk 0:02:40.4]} 17... Bh5 {[%clk 0:02:31.4]} 18. Bb2
{[%clk 0:02:37.9]} 18... Bc5 {[%clk 0:02:23.8]} 19. g4 {[%clk 0:02:30.7]} 19...
Bg6 {[%clk 0:02:24.3]} 20. Ne5 {[%clk 0:02:31.7]} 20... Bh7 {[%clk 0:02:22.6]}
21. Bc1 {[%clk 0:02:32.4]} 21... Re8 {[%clk 0:02:21.3]} 22. Bf4 {[%clk
0:02:30.6]} 22... Bd6 {[%clk 0:02:19.5]} 23. c5 {[%clk 0:02:30.4]} 23... Bxc5
{[%clk 0:01:59.8]} 24. Nc6 {[%clk 0:02:30.8]} 24... bxc6 {[%clk 0:01:31.7]} 25.
Rxe8+ {[%clk 0:02:29]} 25... Nxe8 {[%clk 0:01:33.6]} 26. Rxb8 {[%clk 0:02:29.3]}
26... Qd7 {[%clk 0:01:32.4]} 27. Qe2 {[%clk 0:02:29]} 27... Kf8 {[%clk
0:01:23.9]} 28. Be4 {[%clk 0:02:28.5]} 28... Qe7 {[%clk 0:01:01.5]} 29. Kf1
{[%clk 0:02:25.5]} 29... Bxe4 {[%clk 0:01:02]} 30. Qxe4 {[%clk 0:02:26.1]} 30...
Qxe4 {[%clk 0:01:03.3]} 31. dxe4 {[%clk 0:02:27.4]} 31... Ke7 {[%clk 0:01:04.6]}
32. Ke2 {[%clk 0:02:24.3]} 32... g5 {[%clk 0:01:02]} 33. Bg3 {[%clk 0:02:24.6]}
33... Nf6 {[%clk 0:00:55.1]} 34. Kd3 {[%clk 0:02:23.8]} 34... Nd7 {[%clk
0:00:55.9]} 35. Rc8 {[%clk 0:02:19]} 35... Bb6 {[%clk 0:00:47.8]} 36. Rxc6
{[%clk 0:02:19.6]} 36... Nc5+ {[%clk 0:00:49.2]} 37. Kxd4 {[%clk 0:02:18]} 37...
Ne6+ {[%clk 0:00:48.1]} 38. Kd3 {[%clk 0:02:18.1]} 38... Nc5+ {[%clk 0:00:48.9]}
39. Kd4 {[%clk 0:02:14.6]} 39... Ne6+ {[%clk 0:00:49.4]} 40. Kd5 {[%clk
0:02:15.8]} 40... Kd7 {[%clk 0:00:39.6]} 41. Rd6+ {[%clk 0:02:15.3]} 41... Ke7
{[%clk 0:00:40.6]} 42. f3 {[%clk 0:02:06.8]} 42... Be3 {[%clk 0:00:33]} 43. Ra6
{[%clk 0:02:05.4]} 43... Kd7 {[%clk 0:00:30.1]} 44. Ra3 {[%clk 0:01:57.7]} 44...
Bc5 {[%clk 0:00:29.4]} 45. Rc3 {[%clk 0:01:55.9]} 45... Bd4 {[%clk 0:00:26.6]}
46. Rd3 {[%clk 0:01:50]} 46... Bb6 {[%clk 0:00:25.8]} 47. Kc4+ {[%clk
0:01:47.5]} 47... Ke7 {[%clk 0:00:26.1]} 48. a4 {[%clk 0:01:48]} 48... Ke8
{[%clk 0:00:19.5]} 49. Kb5 {[%clk 0:01:45.2]} 49... Bg1 {[%clk 0:00:20.1]} 50.
a5 {[%clk 0:01:45.3]} 50... a6+ {[%clk 0:00:19.9]} 51. Kc4 {[%clk 0:01:45.4]}
51... Nc5 {[%clk 0:00:19.2]} 52. Rd1 {[%clk 0:01:45]} 52... Be3 {[%clk
0:00:19.4]} 53. Re1 {[%clk 0:01:46.5]} 53... Bd2 {[%clk 0:00:20.1]} 54. Kxc5
{[%clk 0:01:47.7]} 1-0

[Event "*** Titled Tuesday Blitz"]
[Site "Chess.com"]
[Date "2018.11.06"]
[Round "5"]
[White "enriquetejedor"]
[Black "mc4chess"]
[Result "1-0"]
[WhiteElo "2482"]
[BlackElo "2470"]
[TimeControl "180+2"]
[EndTime "14:06:30 PST"]
[Termination "enriquetejedor won by resignation"]

1. e4 {[%clk 0:02:28.1]} 1... c5 {[%clk 0:03:00.7]} 2. Nc3 {[%clk 0:02:28]} 2...
e6 {[%clk 0:03:01.7]} 3. Nf3 {[%clk 0:02:29.6]} 3... a6 {[%clk 0:03:03]} 4. d4
{[%clk 0:02:30.5]} 4... cxd4 {[%clk 0:03:04.9]} 5. Nxd4 {[%clk 0:02:32.3]} 5...
Qc7 {[%clk 0:03:06.5]} 6. g3 {[%clk 0:02:30.4]} 6... Nf6 {[%clk 0:03:07.3]} 7.
Bg2 {[%clk 0:02:24.3]} 7... h5 {[%clk 0:03:08.4]} 8. h3 {[%clk 0:02:15.1]} 8...
Nc6 {[%clk 0:03:05.1]} 9. O-O {[%clk 0:02:14]} 9... Nxd4 {[%clk 0:03:01.7]} 10.
Qxd4 {[%clk 0:02:12.9]} 10... Bc5 {[%clk 0:03:03.2]} 11. Qd3 {[%clk 0:02:14.6]}
11... d6 {[%clk 0:03:03.3]} 12. Be3 {[%clk 0:02:14.4]} 12... Bd7 {[%clk
0:02:57.2]} 13. Bxc5 {[%clk 0:02:13.9]} 13... dxc5 {[%clk 0:02:57.6]} 14. e5
{[%clk 0:02:12.4]} 14... Qxe5 {[%clk 0:02:57.7]} 15. Bxb7 {[%clk 0:02:13.2]}
15... Rd8 {[%clk 0:02:58.8]} 16. Rfe1 {[%clk 0:02:11.8]} 16... Qc7 {[%clk
0:02:56.5]} 17. Qxa6 {[%clk 0:02:12.8]} 17... O-O {[%clk 0:02:54.4]} 18. Bg2
{[%clk 0:02:13.8]} 18... Rb8 {[%clk 0:02:51.6]} 19. b3 {[%clk 0:02:12.5]} 19...
Rfd8 {[%clk 0:02:46.8]} 20. Rad1 {[%clk 0:02:12]} 20... Be8 {[%clk 0:02:46.1]}
21. a3 {[%clk 0:02:10.5]} 21... Rdc8 {[%clk 0:02:34.2]} 22. Qc4 {[%clk
0:01:54.4]} 22... Qa5 {[%clk 0:02:30.3]} 23. a4 {[%clk 0:01:39]} 23... Rb4
{[%clk 0:02:29.6]} 24. Qe2 {[%clk 0:01:36.4]} 24... c4 {[%clk 0:02:29.5]} 25.
Na2 {[%clk 0:01:16.6]} 25... Rb6 {[%clk 0:01:53.1]} 26. Nc1 {[%clk 0:01:11.6]}
26... Qb4 {[%clk 0:01:13.4]} 27. Qd2 {[%clk 0:01:09]} 27... Qa3 {[%clk
0:01:11.1]} 28. Qa5 {[%clk 0:00:55.4]} 28... Rbb8 {[%clk 0:01:09.3]} 29. Re3
{[%clk 0:00:51.9]} 29... cxb3 {[%clk 0:01:02.2]} 30. Rxb3 {[%clk 0:00:52.1]}
30... Qxa4 {[%clk 0:01:01.3]} 31. Qxa4 {[%clk 0:00:52.6]} 31... Bxa4 {[%clk
0:01:03.2]} 32. Rxb8 {[%clk 0:00:51.8]} 32... Rxb8 {[%clk 0:01:05.1]} 33. Nb3
{[%clk 0:00:52.7]} 33... Rc8 {[%clk 0:01:01.3]} 34. Nd4 {[%clk 0:00:51.3]} 34...
g6 {[%clk 0:00:57.2]} 35. Ra1 {[%clk 0:00:51.2]} 35... e5 {[%clk 0:00:52.2]} 36.
Rxa4 {[%clk 0:00:49.4]} 36... exd4 {[%clk 0:00:53.2]} 37. Ra8 {[%clk 0:00:47.2]}
37... Rxa8 {[%clk 0:00:50.7]} 38. Bxa8 {[%clk 0:00:49.1]} 38... Kf8 {[%clk
0:00:52.2]} 39. Kf1 {[%clk 0:00:50.4]} 39... Ke7 {[%clk 0:00:53.8]} 40. Ke2
{[%clk 0:00:51.6]} 40... Kd6 {[%clk 0:00:55.4]} 41. Kd3 {[%clk 0:00:53]} 41...
Ke5 {[%clk 0:00:54.8]} 42. f4+ {[%clk 0:00:53.3]} 42... Kd6 {[%clk 0:00:50.6]}
43. Kxd4 {[%clk 0:00:54]} 43... Nd7 {[%clk 0:00:51.4]} 44. Bd5 {[%clk
0:00:53.9]} 44... f6 {[%clk 0:00:51.2]} 45. Bf7 {[%clk 0:00:54.8]} 45... g5
{[%clk 0:00:52]} 46. Bxh5 {[%clk 0:00:55.1]} 46... Nc5 {[%clk 0:00:50.9]} 47.
fxg5 {[%clk 0:00:55.7]} 47... fxg5 {[%clk 0:00:50.1]} 48. Bg4 {[%clk 0:00:57.3]}
48... Na4 {[%clk 0:00:45.7]} 49. Ke4 {[%clk 0:00:58.4]} 49... Nc3+ {[%clk
0:00:43.4]} 50. Kf5 {[%clk 0:00:59.7]} 50... Nb5 {[%clk 0:00:42.4]} 1-0

[Event "*** Titled Tuesday Blitz"]
[Site "Chess.com"]
[Date "2018.11.06"]
[Round "5"]
[White "MikaelyanArman"]
[Black "RaphaeI"]
[Result "0-1"]
[WhiteElo "2727"]
[BlackElo "2586"]
[TimeControl "180+2"]
[EndTime "14:06:33 PST"]
[Termination "RaphaeI won on time"]

1. e4 {[%clk 0:03:01.9]} 1... c5 {[%clk 0:02:58.6]} 2. Nf3 {[%clk 0:03:02.5]}
2... g6 {[%clk 0:02:59.6]} 3. c3 {[%clk 0:03:01.7]} 3... Bg7 {[%clk 0:02:59.8]}
4. d4 {[%clk 0:03:02.7]} 4... cxd4 {[%clk 0:03:01.3]} 5. cxd4 {[%clk 0:03:04.6]}
5... d5 {[%clk 0:03:02.8]} 6. e5 {[%clk 0:03:06]} 6... Nh6 {[%clk 0:03:03.9]} 7.
Nc3 {[%clk 0:02:52.4]} 7... O-O {[%clk 0:03:04.6]} 8. h3 {[%clk 0:02:46.4]} 8...
f6 {[%clk 0:02:50.8]} 9. Be2 {[%clk 0:02:35]} 9... Nc6 {[%clk 0:02:49.6]} 10.
exf6 {[%clk 0:02:34.9]} 10... Rxf6 {[%clk 0:02:50.6]} 11. O-O {[%clk 0:02:30.9]}
11... Nf5 {[%clk 0:02:51.4]} 12. Bb5 {[%clk 0:02:19.4]} 12... Rf8 {[%clk
0:01:26.8]} 13. Bxc6 {[%clk 0:02:16.2]} 13... bxc6 {[%clk 0:01:28.7]} 14. Re1
{[%clk 0:02:17.2]} 14... Qb6 {[%clk 0:01:14.8]} 15. Na4 {[%clk 0:02:18]} 15...
Qb5 {[%clk 0:01:16]} 16. b3 {[%clk 0:02:10.9]} 16... c5 {[%clk 0:00:55.8]} 17.
Nxc5 {[%clk 0:02:03.1]} 17... Nxd4 {[%clk 0:00:56.8]} 18. Nxd4 {[%clk
0:02:03.2]} 18... Qxc5 {[%clk 0:00:58.1]} 19. Be3 {[%clk 0:02:02.7]} 19... Qd6
{[%clk 0:00:47.6]} 20. Rc1 {[%clk 0:02:02.3]} 20... Bd7 {[%clk 0:00:44.3]} 21.
Nf3 {[%clk 0:01:45.3]} 21... Rfc8 {[%clk 0:00:45.3]} 22. Rxc8+ {[%clk
0:01:38.3]} 22... Rxc8 {[%clk 0:00:46.1]} 23. Bd4 {[%clk 0:01:38.8]} 23... Bh6
{[%clk 0:00:33.8]} 24. Be5 {[%clk 0:01:33.7]} 24... Qc6 {[%clk 0:00:35]} 25. Nd4
{[%clk 0:01:31.3]} 25... Qc1 {[%clk 0:00:36]} 26. f4 {[%clk 0:01:16.2]} 26...
Bxf4 {[%clk 0:00:29.4]} 27. Bxf4 {[%clk 0:01:11.6]} 27... Qxf4 {[%clk
0:00:31.3]} 28. Nf3 {[%clk 0:01:06]} 28... e6 {[%clk 0:00:24.5]} 29. Ne5 {[%clk
0:01:06.8]} 29... Bb5 {[%clk 0:00:23.8]} 30. Ng4 {[%clk 0:01:05.1]} 30... h5
{[%clk 0:00:19.2]} 31. Rf1 {[%clk 0:01:03.5]} 31... Qxf1+ {[%clk 0:00:19.2]} 0-1